Workbook

Sheet 评审成绩
A1: 附件
A2: 贵阳经济技术开发区事业单位2023年公开引进高层次人才成绩汇总表
A3: 序号 | B3: 姓名 | C3: 准考证号 | D3: 应聘岗位 | E3: 岗位 代码 | F3: 现场评审 成绩 | G3: 现场评审成绩 （占50%） | H3: 实践测试 成绩 | I3: 实践成绩 （占50%） | J3: 总成绩
A4: 1 | B4: 王 烨 | C4: 100058981 | D4: 专业技术 | E4: 001 | F4: 86.40 | G4: =F4*50% -> 43.20 | H4: 89.70 | I4: =H4*50% -> 44.85 | J4: =I4+G4 -> 88.05
A5: 2 | B5: 岳小湘 | C5: 100059092 | D5: 专业技术 | E5: 001 | F5: 85.02 | G5: 42.51 | H5: 87.43 | I5: 43.72 | J5: 86.23
A6: 3 | B6: 邹慧琴 | C6: 100061036 | D6: 专业技术 | E6: 001 | F6: 83.33 | G6: 41.67 | H6: 88.55 | I6: 44.28 | J6: 85.94
A7: 4 | B7: 尹海晓 | C7: 100058467 | D7: 专业技术 | E7: 001 | F7: 85.31 | G7: 42.66 | H7: 86.01 | I7: 43.01 | J7: 85.66
A8: 5 | B8: 吴天宇 | C8: 100058596 | D8: 专业技术 | E8: 001 | F8: 83.94 | G8: 41.97 | H8: 86.01 | I8: 43.01 | J8: 84.98
A9: 6 | B9: 伍建业 | C9: 100062187 | D9: 专业技术 | E9: 001 | F9: 83.15 | G9: 41.58 | H9: 86.64 | I9: 43.32 | J9: 84.90
A10: 7 | B10: 周纪廷 | C10: 100060116 | D10: 专业技术 | E10: 001 | F10: 84.20 | G10: 42.10 | H10: 85.18 | I10: 42.59 | J10: 84.69
A11: 8 | B11: 王秋蜜 | C11: 100062150 | D11: 专业技术 | E11: 001 | F11: 85.23 | G11: 42.62 | H11: 84.11 | I11: 42.06 | J11: 84.67
A12: 9 | B12: 范 航 | C12: 100061956 | D12: 专业技术 | E12: 001 | F12: 84.63 | G12: 42.32 | H12: 83.25 | I12: 41.63 | J12: 83.94
A13: 10 | B13: 查 金 | C13: 100062210 | D13: 专业技术 | E13: 001 | F13: 83.42 | G13: 41.71 | H13: 82.63 | I13: 41.32 | J13: 83.03
A14: 11 | B14: 李海雄 | C14: 100062241 | D14: 专业技术 | E14: 001 | F14: 84.43 | G14: 42.22 | H14: 80.60 | I14: 40.30 | J14: 82.52
A15: 12 | B15: 方 圆 | C15: 100059172 | D15: 专业技术 | E15: 001 | F15: 83.09 | G15: 41.55 | H15: 81.48 | I15: 40.74 | J15: 82.29
A16: 13 | B16: 卢析赤 | C16: 100059398 | D16: 专业技术 | E16: 001 | F16: 84.85 | G16: 42.43 | H16: 79.20 | I16: 39.60 | J16: 82.03
A17: 14 | B17: 钟 毅 | C17: 100058732 | D17: 专业技术 | E17: 001 | F17: 88.02 | G17: 44.01 | H17: 75.20 | I17: 37.60 | J17: 81.61
A18: 15 | B18: 田鸿林 | C18: 100058890 | D18: 专业技术 | E18: 001 | F18: 84.27 | G18: 42.14 | H18: 78.79 | I18: 39.40 | J18: 81.53
A19: 16 | B19: 刘 杰 | C19: 100058706 | D19: 专业技术 | E19: 001 | F19: 82.81 | G19: 41.41 | H19: 80.08 | I19: 40.04 | J19: 81.45
A20: 17 | B20: 潘美仙 | C20: 100059232 | D20: 专业技术 | E20: 001 | F20: 81.90 | G20: =F20*50% -> 40.95 | H20: 79.85 | I20: =H20*50% -> 39.93 | J20: =I20+G20 -> 80.88
A21: 18 | B21: 叶 霞 | C21: 100060651 | D21: 专业技术 | E21: 001 | F21: 82.83 | G21: =F21*50% -> 41.42 | H21: 76.66 | I21: =H21*50% -> 38.33 | J21: =I21+G21 -> 79.75
A22: 19 | B22: 苏铜军 | C22: 100062230 | D22: 专业技术 | E22: 001 | F22: 82.59 | G22: =F22*50% -> 41.30 | H22: 76.71 | I22: =H22*50% -> 38.36 | J22: =I22+G22 -> 79.65
A23: 20 | B23: 邱永明 | C23: 100058446 | D23: 专业技术 | E23: 001 | F23: 80.03 | G23: =F23*50% -> 40.02 | H23: 74.08 | I23: =H23*50% -> 37.04 | J23: =I23+G23 -> 77.06
A24: 21 | B24: 屈 扬 | C24: 300059266 | D24: 专业技术 | E24: 003 | F24: 87.93 | G24: =F24*50% -> 43.97 | H24: 89.70 | I24: =H24*50% -> 44.85 | J24: =I24+G24 -> 88.82
A25: 22 | B25: 张梅梅 | C25: 300059920 | D25: 专业技术 | E25: 003 | F25: 83.31 | G25: =F25*50% -> 41.66 | H25: 81.55 | I25: =H25*50% -> 40.78 | J25: =I25+G25 -> 82.43
A26: 23 | B26: 付世琪 | C26: 300059762 | D26: 专业技术 | E26: 003 | F26: 80.41 | G26: =F26*50% -> 40.21 | H26: 78.71 | I26: =H26*50% -> 39.36 | J26: =I26+G26 -> 79.56
A27: 24 | B27: 杨 洋 | C27: 300062074 | D27: 专业技术 | E27: 003 | F27: 81.74 | G27: =F27*50% -> 40.87 | H27: 73.06 | I27: =H27*50% -> 36.53 | J27: =I27+G27 -> 77.40
